Workbook

Sheet Sheet1
A1: 威宁自治县公安局2025年面向社会公开招聘警务辅助人员 总成绩公示及拟进入体检人员名单
A2: 序号 | B2: 职位名称 | C2: 招考单位 | D2: 职位代码 | E2: 姓名 | F2: 准考证号 | G2: 笔试成绩 | H2: 折算为百分制 | I2: 笔试成绩 （40%） | J2: 面试 成绩 | K2: 面试成绩 （60%） | L2: 总成绩 | M2: 是否进入体检 | N2: 备注
A3: 1 | B3: 勤务岗位01 | C3: 威宁自治县公安局 | D3: 01 | E3: 虎蔓 | F3: 20250100501 | G3: 112.57 | H3: =ROUND(G3/1.5,2) -> 75.05 | I3: =ROUND(H3*0.4,2) -> 30.02 | J3: 88.33 | K3: =ROUND(J3*0.6,2) -> 53.00 | L3: =I3+K3 -> 83.02 | M3: 是
A4: 2 | B4: 勤务岗位01 | C4: 威宁自治县公安局 | D4: 01 | E4: 付优 | F4: 20250101301 | G4: 112.92 | H4: 75.28 | I4: 30.11 | J4: 87.67 | K4: 52.60 | L4: 82.71 | M4: 是
A5: 3 | B5: 勤务岗位01 | C5: 威宁自治县公安局 | D5: 01 | E5: 张滨洁 | F5: 20250101205 | G5: 113.55 | H5: 75.70 | I5: 30.28 | J5: 87.17 | K5: 52.30 | L5: 82.58 | M5: 是
A6: 4 | B6: 勤务岗位01 | C6: 威宁自治县公安局 | D6: 01 | E6: 杨伸方 | F6: 20250100830 | G6: 112.24 | H6: 74.83 | I6: 29.93 | J6: 87.33 | K6: 52.40 | L6: 82.33 | M6: 是
A7: 5 | B7: 勤务岗位01 | C7: 威宁自治县公安局 | D7: 01 | E7: 王红艳 | F7: 20250100123 | G7: 118.01 | H7: 78.67 | I7: 31.47 | J7: 84.67 | K7: 50.80 | L7: 82.27 | M7: 是
A8: 6 | B8: 勤务岗位01 | C8: 威宁自治县公安局 | D8: 01 | E8: 尹贤梅 | F8: 20250101217 | G8: 117.90 | H8: 78.60 | I8: 31.44 | J8: 84.00 | K8: 50.40 | L8: 81.84 | M8: 是
A9: 7 | B9: 勤务岗位01 | C9: 威宁自治县公安局 | D9: 01 | E9: 周玉琴 | F9: 20250101215 | G9: 113.07 | H9: 75.38 | I9: 30.15 | J9: 86.00 | K9: 51.60 | L9: 81.75 | M9: 是
A10: 8 | B10: 勤务岗位01 | C10: 威宁自治县公安局 | D10: 01 | E10: 撒兰月 | F10: 20250100101 | G10: 117.53 | H10: 78.35 | I10: 31.34 | J10: 83.67 | K10: 50.20 | L10: 81.54 | M10: 是
A11: 9 | B11: 勤务岗位01 | C11: 威宁自治县公安局 | D11: 01 | E11: 潘玉智 | F11: 20250100705 | G11: 118.82 | H11: 79.21 | I11: 31.68 | J11: 83.00 | K11: 49.80 | L11: 81.48 | M11: 是
A12: 10 | B12: 勤务岗位01 | C12: 威宁自治县公安局 | D12: 01 | E12: 杨成庚 | F12: 20250100911 | G12: 116.26 | H12: 77.51 | I12: 31.00 | J12: 83.67 | K12: 50.20 | L12: 81.20 | M12: 是
A13: 11 | B13: 勤务岗位01 | C13: 威宁自治县公安局 | D13: 01 | E13: 姜波宴 | F13: 20250100709 | G13: 119.80 | H13: 79.87 | I13: 31.95 | J13: 80.67 | K13: 48.40 | L13: 80.35 | M13: 否
A14: 12 | B14: 勤务岗位01 | C14: 威宁自治县公安局 | D14: 01 | E14: 赵英训 | F14: 20250100615 | G14: 112.46 | H14: 74.97 | I14: 29.99 | J14: 83.67 | K14: 50.20 | L14: 80.19 | M14: 否
A15: 13 | B15: 勤务岗位01 | C15: 威宁自治县公安局 | D15: 01 | E15: 邓仕芬 | F15: 20250100714 | G15: 112.90 | H15: 75.27 | I15: 30.11 | J15: 82.33 | K15: 49.40 | L15: 79.51 | M15: 否
A16: 14 | B16: 勤务岗位01 | C16: 威宁自治县公安局 | D16: 01 | E16: 李小利 | F16: 20250100823 | G16: 115.91 | H16: 77.27 | I16: 30.91 | J16: 80.33 | K16: 48.20 | L16: 79.11 | M16: 否
A17: 15 | B17: 勤务岗位01 | C17: 威宁自治县公安局 | D17: 01 | E17: 赵泽梦 | F17: 20250101401 | G17: 114.12 | H17: 76.08 | I17: 30.43 | J17: 81.00 | K17: 48.60 | L17: 79.03 | M17: 否
A18: 16 | B18: 勤务岗位01 | C18: 威宁自治县公安局 | D18: 01 | E18: 王邦芬 | F18: 20250100703 | G18: 114.56 | H18: 76.37 | I18: 30.55 | J18: 79.33 | K18: 47.60 | L18: 78.15 | M18: 否
A19: 17 | B19: 勤务岗位01 | C19: 威宁自治县公安局 | D19: 01 | E19: 沈荣杰 | F19: 20250101003 | G19: 113.64 | H19: 75.76 | I19: 30.30 | J19: 77.67 | K19: 46.60 | L19: 76.90 | M19: 否
A20: 18 | B20: 勤务岗位01 | C20: 威宁自治县公安局 | D20: 01 | E20: 梁灵灵 | F20: 20250101102 | G20: 114.80 | H20: 76.53 | I20: 30.61 | J20: 77.00 | K20: 46.20 | L20: 76.81 | M20: 否
A21: 19 | B21: 勤务岗位01 | C21: 威宁自治县公安局 | D21: 01 | E21: 李丹 | F21: 20250101029 | G21: 115.41 | H21: 76.94 | I21: 30.78 | J21: 75.67 | K21: 45.40 | L21: 76.18 | M21: 否
A22: 20 | B22: 勤务岗位02 | C22: 威宁自治县公安局 | D22: 02 | E22: 董春梅 | F22: 20250202025 | G22: 114.32 | H22: 76.21 | I22: 30.48 | J22: 85.23 | K22: 51.14 | L22: 81.62 | M22: 是
A23: 21 | B23: 勤务岗位02 | C23: 威宁自治县公安局 | D23: 02 | E23: 马赛竹 | F23: 20250201622 | G23: 117.90 | H23: 78.60 | I23: 31.44 | J23: 82.30 | K23: 49.38 | L23: 80.82 | M23: 是
A24: 22 | B24: 勤务岗位02 | C24: 威宁自治县公安局 | D24: 02 | E24: 蔡平 | F24: 20250201611 | G24: 122.27 | H24: 81.51 | I24: 32.60 | J24: 80.23 | K24: 48.14 | L24: 80.74 | M24: 是
A25: 23 | B25: 勤务岗位02 | C25: 威宁自治县公安局 | D25: 02 | E25: 马艳露 | F25: 20250202310 | G25: 114.56 | H25: 76.37 | I25: 30.55 | J25: 82.90 | K25: 49.74 | L25: 80.29 | M25: 是
A26: 24 | B26: 勤务岗位02 | C26: 威宁自治县公安局 | D26: 02 | E26: 马玉 | F26: 20250201515 | G26: 116.46 | H26: 77.64 | I26: 31.06 | J26: 81.66 | K26: 49.00 | L26: 80.06 | M26: 是
A27: 25 | B27: 勤务岗位02 | C27: 威宁自治县公安局 | D27: 02 | E27: 聂敏慧 | F27: 20250202125 | G27: 111.52 | H27: 74.35 | I27: 29.74 | J27: 83.73 | K27: 50.24 | L27: 79.98 | M27: 是
A28: 26 | B28: 勤务岗位02 | C28: 威宁自治县公安局 | D28: 02 | E28: 孔玲玲 | F28: 20250202322 | G28: 117.40 | H28: 78.27 | I28: 31.31 | J28: 81.06 | K28: 48.64 | L28: 79.95 | M28: 是
A29: 27 | B29: 勤务岗位02 | C29: 威宁自治县公安局 | D29: 02 | E29: 蔡雪灵 | F29: 20250201726 | G29: 118.38 | H29: 78.92 | I29: 31.57 | J29: 80.36 | K29: 48.22 | L29: 79.79 | M29: 是
A30: 28 | B30: 勤务岗位02 | C30: 威宁自治县公安局 | D30: 02 | E30: 程雕 | F30: 20250202519 | G30: 112.70 | H30: 75.13 | I30: 30.05 | J30: 82.76 | K30: 49.66 | L30: 79.71 | M30: 是
A31: 29 | B31: 勤务岗位02 | C31: 威宁自治县公安局 | D31: 02 | E31: 王琴 | F31: 20250201914 | G31: 111.85 | H31: 74.57 | I31: 29.83 | J31: 82.83 | K31: 49.70 | L31: 79.53 | M31: 是
A32: 30 | B32: 勤务岗位02 | C32: 威宁自治县公安局 | D32: 02 | E32: 张菊仙 | F32: 20250202421 | G32: 111.15 | H32: 74.10 | I32: 29.64 | J32: 82.50 | K32: 49.50 | L32: 79.14 | M32: 否
A33: 31 | B33: 勤务岗位02 | C33: 威宁自治县公安局 | D33: 02 | E33: 龙练 | F33: 20250202307 | G33: 116.83 | H33: 77.89 | I33: 31.16 | J33: 77.90 | K33: 46.74 | L33: 77.90 | M33: 否
A34: 32 | B34: 勤务岗位02 | C34: 威宁自治县公安局 | D34: 02 | E34: 安琦 | F34: 20250201606 | G34: 120.61 | H34: 80.41 | I34: 32.16 | J34: 76.20 | K34: 45.72 | L34: 77.88 | M34: 否
A35: 33 | B35: 勤务岗位02 | C35: 威宁自治县公安局 | D35: 02 | E35: 赵蓉 | F35: 20250201818 | G35: 111.52 | H35: 74.35 | I35: 29.74 | J35: 80.20 | K35: 48.12 | L35: 77.86 | M35: 否
A36: 34 | B36: 勤务岗位02 | C36: 威宁自治县公安局 | D36: 02 | E36: 马杰 | F36: 20250201522 | G36: 113.42 | H36: 75.61 | I36: 30.24 | J36: 79.00 | K36: 47.40 | L36: 77.64 | M36: 否
A37: 35 | B37: 勤务岗位02 | C37: 威宁自治县公安局 | D37: 02 | E37: 禄祎 | F37: 20250202404 | G37: 111.28 | H37: 74.19 | I37: 29.68 | J37: 79.90 | K37: 47.94 | L37: 77.62 | M37: 否
A38: 36 | B38: 勤务岗位02 | C38: 威宁自治县公安局 | D38: 02 | E38: 席安群 | F38: 20250201525 | G38: 115.41 | H38: 76.94 | I38: 30.78 | J38: 77.50 | K38: 46.50 | L38: 77.28 | M38: 否
A39: 37 | B39: 勤务岗位02 | C39: 威宁自治县公安局 | D39: 02 | E39: 宋花花 | F39: 20250202114 | G39: 114.32 | H39: 76.21 | I39: 30.48 | J39: 77.70 | K39: 46.62 | L39: 77.10 | M39: 否
A40: 38 | B40: 勤务岗位02 | C40: 威宁自治县公安局 | D40: 02 | E40: 解云仙 | F40: 20250201727 | G40: 116.68 | H40: 77.79 | I40: 31.12 | J40: 76.10 | K40: 45.66 | L40: 76.78 | M40: 否
A41: 39 | B41: 勤务岗位02 | C41: 威宁自治县公安局 | D41: 02 | E41: 马义勇 | F41: 20250201619 | G41: 111.15 | H41: 74.10 | I41: 29.64 | J41: 77.90 | K41: 46.74 | L41: 76.38 | M41: 否
A42: 40 | B42: 勤务岗位02 | C42: 威宁自治县公安局 | D42: 02 | E42: 阳国邮 | F42: 20250201804 | G42: 111.52 | H42: 74.35 | I42: 29.74 | J42: 72.50 | K42: 43.50 | L42: 73.24 | M42: 否
A43: 41 | B43: 勤务岗位03 | C43: 威宁自治县公安局 | D43: 03 | E43: 孔菲蝶 | F43: 20250303104 | G43: 116.96 | H43: 77.97 | I43: 31.19 | J43: 76.60 | K43: 45.96 | L43: 77.15 | M43: 是
A44: 42 | B44: 勤务岗位03 | C44: 威宁自治县公安局 | D44: 03 | E44: 陈薪舟 | F44: 20250302711 | G44: 115.37 | H44: 76.91 | I44: 30.76 | J44: 76.30 | K44: 45.78 | L44: 76.54 | M44: 是
A45: 43 | B45: 勤务岗位03 | C45: 威宁自治县公安局 | D45: 03 | E45: 王运 | F45: 20250303212 | G45: 115.32 | H45: 76.88 | I45: 30.75 | J45: 74.60 | K45: 44.76 | L45: 75.51 | M45: 是
A46: 44 | B46: 勤务岗位03 | C46: 威宁自治县公安局 | D46: 03 | E46: 朱玉琴 | F46: 20250302717 | G46: 118.01 | H46: 78.67 | I46: 31.47 | J46: 73.00 | K46: 43.80 | L46: 75.27 | M46: 是
A47: 45 | B47: 勤务岗位03 | C47: 威宁自治县公安局 | D47: 03 | E47: 宋丽梅 | F47: 20250302822 | G47: 109.53 | H47: 73.02 | I47: 29.21 | J47: 76.00 | K47: 45.60 | L47: 74.81 | M47: 是
A48: 46 | B48: 勤务岗位03 | C48: 威宁自治县公安局 | D48: 03 | E48: 刘升 | F48: 20250302716 | G48: 114.23 | H48: 76.15 | I48: 30.46 | J48: 73.60 | K48: 44.16 | L48: 74.62 | M48: 是
A49: 47 | B49: 勤务岗位03 | C49: 威宁自治县公安局 | D49: 03 | E49: 余泉娇 | F49: 20250302927 | G49: 108.20 | H49: 72.13 | I49: 28.85 | J49: 76.00 | K49: 45.60 | L49: 74.45 | M49: 是
A50: 48 | B50: 勤务岗位03 | C50: 威宁自治县公安局 | D50: 03 | E50: 孙志雄 | F50: 20250303007 | G50: 116.70 | H50: 77.80 | I50: 31.12 | J50: 71.60 | K50: 42.96 | L50: 74.08 | M50: 是
A51: 49 | B51: 勤务岗位03 | C51: 威宁自治县公安局 | D51: 03 | E51: 曾婷 | F51: 20250303002 | G51: 114.19 | H51: 76.13 | I51: 30.45 | J51: 72.00 | K51: 43.20 | L51: 73.65 | M51: 是
A52: 50 | B52: 勤务岗位03 | C52: 威宁自治县公安局 | D52: 03 | E52: 杨凯 | F52: 20250302727 | G52: 106.23 | H52: 70.82 | I52: 28.33 | J52: 73.30 | K52: 43.98 | L52: 72.31 | M52: 是
A53: 51 | B53: 勤务岗位03 | C53: 威宁自治县公安局 | D53: 03 | E53: 所才旺 | F53: 20250302928 | G53: 109.27 | H53: 72.85 | I53: 29.14 | J53: 71.80 | K53: 43.08 | L53: 72.22 | M53: 否
A54: 52 | B54: 勤务岗位03 | C54: 威宁自治县公安局 | D54: 03 | E54: 秦智莉 | F54: 20250302828 | G54: 102.71 | H54: 68.47 | I54: 27.39 | J54: 74.60 | K54: 44.76 | L54: 72.15 | M54: 否
A55: 53 | B55: 勤务岗位03 | C55: 威宁自治县公安局 | D55: 03 | E55: 李杰 | F55: 20250303221 | G55: 105.47 | H55: 70.31 | I55: 28.12 | J55: 72.00 | K55: 43.20 | L55: 71.32 | M55: 否
A56: 54 | B56: 勤务岗位03 | C56: 威宁自治县公安局 | D56: 03 | E56: 谢艳飞 | F56: 20250303118 | G56: 109.86 | H56: 73.24 | I56: 29.30 | J56: 69.60 | K56: 41.76 | L56: 71.06 | M56: 否
A57: 55 | B57: 勤务岗位03 | C57: 威宁自治县公安局 | D57: 03 | E57: 许明超 | F57: 20250303117 | G57: 107.74 | H57: 71.83 | I57: 28.73 | J57: 70.30 | K57: 42.18 | L57: 70.91 | M57: 否
A58: 56 | B58: 勤务岗位03 | C58: 威宁自治县公安局 | D58: 03 | E58: 朱绍习 | F58: 20250303012 | G58: 103.24 | H58: 68.83 | I58: 27.53 | J58: 72.30 | K58: 43.38 | L58: 70.91 | M58: 否
A59: 57 | B59: 勤务岗位03 | C59: 威宁自治县公安局 | D59: 03 | E59: 程志 | F59: 20250302929 | G59: 103.74 | H59: 69.16 | I59: 27.66 | J59: 72.00 | K59: 43.20 | L59: 70.86 | M59: 否
A60: 58 | B60: 勤务岗位03 | C60: 威宁自治县公安局 | D60: 03 | E60: 殷伦 | F60: 20250302713 | G60: 103.48 | H60: 68.99 | I60: 27.60 | J60: 71.80 | K60: 43.08 | L60: 70.68 | M60: 否
A61: 59 | B61: 勤务岗位03 | C61: 威宁自治县公安局 | D61: 03 | E61: 祖明亚 | F61: 20250303001 | G61: 105.38 | H61: 70.25 | I61: 28.10 | J61: 70.00 | K61: 42.00 | L61: 70.10 | M61: 否
A62: 60 | B62: 勤务岗位03 | C62: 威宁自治县公安局 | D62: 03 | E62: 陈冉 | F62: 20250303103 | G62: 106.74 | H62: 71.16 | I62: 28.46 | J62: 69.00 | K62: 41.40 | L62: 69.86 | M62: 否
A63: 61 | B63: 勤务岗位03 | C63: 威宁自治县公安局 | D63: 03 | E63: 李爽 | F63: 20250302910 | G63: 102.54 | H63: 68.36 | I63: 27.34 | J63: 70.00 | K63: 42.00 | L63: 69.34 | M63: 否
A64: 62 | B64: 勤务岗位03 | C64: 威宁自治县公安局 | D64: 03 | E64: 马薇 | F64: 20250302812 | G64: 103.68 | H64: 69.12 | I64: 27.65 | J64: 68.10 | K64: 40.86 | L64: 68.51 | M64: 否
A65: 63 | B65: 勤务岗位03 | C65: 威宁自治县公安局 | D65: 03 | E65: 李红 | F65: 20250302914 | G65: 102.76 | H65: 68.51 | I65: 27.40 | J65: 67.30 | K65: 40.38 | L65: 67.78 | M65: 否
A66: 64 | B66: 勤务岗位04 | C66: 威宁自治县公安局 | D66: 04 | E66: 赵磊 | F66: 20250403608 | G66: 105.95 | H66: 70.63 | I66: 28.25 | J66: 82.20 | K66: 49.32 | L66: 77.57 | M66: 是
A67: 65 | B67: 勤务岗位04 | C67: 威宁自治县公安局 | D67: 04 | E67: 李志省 | F67: 20250403607 | G67: 111.85 | H67: =ROUND(G67/1.5,2) -> 74.57 | I67: =ROUND(H67*0.4,2) -> 29.83 | J67: 79.27 | K67: =ROUND(J67*0.6,2) -> 47.56 | L67: =I67+K67 -> 77.39 | M67: 是
A68: 66 | B68: 勤务岗位04 | C68: 威宁自治县公安局 | D68: 04 | E68: 孔令锟 | F68: 20250403406 | G68: 111.08 | H68: 74.05 | I68: 29.62 | J68: 79.00 | K68: 47.40 | L68: 77.02 | M68: 是
A69: 67 | B69: 勤务岗位04 | C69: 威宁自治县公安局 | D69: 04 | E69: 陆帅 | F69: 20250403505 | G69: 119.56 | H69: 79.71 | I69: 31.88 | J69: 73.33 | K69: 44.00 | L69: 75.88 | M69: 是
A70: 68 | B70: 勤务岗位04 | C70: 威宁自治县公安局 | D70: 04 | E70: 林鹏 | F70: 20250403520 | G70: 109.01 | H70: 72.67 | I70: 29.07 | J70: 78.00 | K70: 46.80 | L70: 75.87 | M70: 是
A71: 69 | B71: 勤务岗位04 | C71: 威宁自治县公安局 | D71: 04 | E71: 王佳雷 | F71: 20250403613 | G71: 109.97 | H71: 73.31 | I71: 29.32 | J71: 76.33 | K71: 45.80 | L71: 75.12 | M71: 是
A72: 70 | B72: 勤务岗位04 | C72: 威宁自治县公安局 | D72: 04 | E72: 朱虎 | F72: 20250403303 | G72: 100.51 | H72: 67.01 | I72: 26.80 | J72: 79.00 | K72: 47.40 | L72: 74.20 | M72: 是
A73: 71 | B73: 勤务岗位04 | C73: 威宁自治县公安局 | D73: 04 | E73: 王进 | F73: 20250403404 | G73: 104.22 | H73: 69.48 | I73: 27.79 | J73: 77.33 | K73: 46.40 | L73: 74.19 | M73: 是
A74: 72 | B74: 勤务岗位04 | C74: 威宁自治县公安局 | D74: 04 | E74: 王健 | F74: 20250403421 | G74: 107.06 | H74: 71.37 | I74: 28.55 | J74: 75.00 | K74: 45.00 | L74: 73.55 | M74: 是
A75: 73 | B75: 勤务岗位04 | C75: 威宁自治县公安局 | D75: 04 | E75: 黄佑朋 | F75: 20250403628 | G75: 103.72 | H75: 69.15 | I75: 27.66 | J75: 76.00 | K75: 45.60 | L75: 73.26 | M75: 是
A76: 74 | B76: 勤务岗位04 | C76: 威宁自治县公安局 | D76: 04 | E76: 马海龙 | F76: 20250403302 | G76: 114.36 | H76: 76.24 | I76: 30.50 | J76: 69.33 | K76: 41.60 | L76: 72.10 | M76: 否
A77: 75 | B77: 勤务岗位04 | C77: 威宁自治县公安局 | D77: 04 | E77: 马元 | F77: 20250403428 | G77: 105.14 | H77: 70.09 | I77: 28.04 | J77: 72.67 | K77: 43.60 | L77: 71.64 | M77: 否
A78: 76 | B78: 勤务岗位04 | C78: 威宁自治县公安局 | D78: 04 | E78: 马关海 | F78: 20250403605 | G78: 106.56 | H78: 71.04 | I78: 28.42 | J78: 72.00 | K78: 43.20 | L78: 71.62 | M78: 否
A79: 77 | B79: 勤务岗位04 | C79: 威宁自治县公安局 | D79: 04 | E79: 周林江 | F79: 20250403528 | G79: 101.86 | H79: 67.91 | I79: 27.16 | J79: 72.67 | K79: 43.60 | L79: 70.76 | M79: 否
A80: 78 | B80: 勤务岗位04 | C80: 威宁自治县公安局 | D80: 04 | E80: 李章论 | F80: 20250403711 | G80: 103.37 | H80: 68.91 | I80: 27.56 | J80: 71.33 | K80: 42.80 | L80: 70.36 | M80: 否
A81: 79 | B81: 勤务岗位04 | C81: 威宁自治县公安局 | D81: 04 | E81: 黄超 | F81: 20250403427 | G81: 103.13 | H81: 68.75 | I81: 27.50 | J81: 71.00 | K81: 42.60 | L81: 70.10 | M81: 否
A82: 80 | B82: 勤务岗位04 | C82: 威宁自治县公安局 | D82: 04 | E82: 张磊 | F82: 20250403701 | G82: 104.42 | H82: 69.61 | I82: 27.84 | J82: 69.33 | K82: 41.60 | L82: 69.44 | M82: 否
A83: 81 | B83: 勤务岗位04 | C83: 威宁自治县公安局 | D83: 04 | E83: 毛浪 | F83: 20250403501 | G83: 101.49 | H83: 67.66 | I83: 27.06 | J83: 70.00 | K83: 42.00 | L83: 69.06 | M83: 否
A84: 82 | B84: 勤务岗位05 | C84: 威宁自治县公安局 | D84: 05 | E84: 撒艳彪 | F84: 20250503920 | G84: 120.65 | H84: 80.43 | I84: 32.17 | J84: 80.33 | K84: 48.20 | L84: 80.37 | M84: 是
A85: 83 | B85: 勤务岗位05 | C85: 威宁自治县公安局 | D85: 05 | E85: 蔡烜杰 | F85: 20250504010 | G85: 117.88 | H85: 78.59 | I85: 31.44 | J85: 73.50 | K85: 44.10 | L85: 75.54 | M85: 是
A86: 84 | B86: 勤务岗位05 | C86: 威宁自治县公安局 | D86: 05 | E86: 况伟强 | F86: 20250503726 | G86: 113.05 | H86: 75.37 | I86: 30.15 | J86: 75.33 | K86: 45.20 | L86: 75.35 | M86: 是
A87: 85 | B87: 勤务岗位05 | C87: 威宁自治县公安局 | D87: 05 | E87: 陆志成 | F87: 20250504102 | G87: 115.98 | H87: 77.32 | I87: 30.93 | J87: 74.00 | K87: 44.40 | L87: 75.33 | M87: 是
A88: 86 | B88: 勤务岗位05 | C88: 威宁自治县公安局 | D88: 05 | E88: 马考 | F88: 20250504222 | G88: 120.85 | H88: 80.57 | I88: 32.23 | J88: 71.50 | K88: 42.90 | L88: 75.13 | M88: 是
A89: 87 | B89: 勤务岗位05 | C89: 威宁自治县公安局 | D89: 05 | E89: 朱佳松 | F89: 20250503902 | G89: 110.78 | H89: 73.85 | I89: 29.54 | J89: 75.33 | K89: 45.20 | L89: 74.74 | M89: 是
A90: 88 | B90: 勤务岗位05 | C90: 威宁自治县公安局 | D90: 05 | E90: 管庆祝 | F90: 20250503918 | G90: 106.45 | H90: 70.97 | I90: 28.39 | J90: 76.83 | K90: 46.10 | L90: 74.49 | M90: 是
A91: 89 | B91: 勤务岗位05 | C91: 威宁自治县公安局 | D91: 05 | E91: 陈义 | F91: 20250504209 | G91: 109.38 | H91: 72.92 | I91: 29.17 | J91: 75.00 | K91: 45.00 | L91: 74.17 | M91: 是
A92: 90 | B92: 勤务岗位05 | C92: 威宁自治县公安局 | D92: 05 | E92: 王港 | F92: 20250503716 | G92: 108.81 | H92: 72.54 | I92: 29.02 | J92: 74.33 | K92: 44.60 | L92: 73.62 | M92: 是
A93: 91 | B93: 勤务岗位05 | C93: 威宁自治县公安局 | D93: 05 | E93: 刘望 | F93: 20250504110 | G93: 114.36 | H93: 76.24 | I93: 30.50 | J93: 71.50 | K93: 42.90 | L93: 73.40 | M93: 是
A94: 92 | B94: 勤务岗位05 | C94: 威宁自治县公安局 | D94: 05 | E94: 马任远 | F94: 20250504109 | G94: 102.43 | H94: 68.29 | I94: 27.32 | J94: 75.33 | K94: 45.20 | L94: 72.52 | M94: 是
A95: 93 | B95: 勤务岗位05 | C95: 威宁自治县公安局 | D95: 05 | E95: 刘冲 | F95: 20250504016 | G95: 105.51 | H95: 70.34 | I95: 28.14 | J95: 73.33 | K95: 44.00 | L95: 72.14 | M95: 是
A96: 94 | B96: 勤务岗位05 | C96: 威宁自治县公安局 | D96: 05 | E96: 刘严 | F96: 20250504214 | G96: 110.58 | H96: 73.72 | I96: 29.49 | J96: 71.00 | K96: 42.60 | L96: 72.09 | M96: 是
A97: 95 | B97: 勤务岗位05 | C97: 威宁自治县公安局 | D97: 05 | E97: 祖启尧 | F97: 20250503715 | G97: 105.14 | H97: 70.09 | I97: 28.04 | J97: 72.33 | K97: 43.40 | L97: 71.44 | M97: 是
A98: 96 | B98: 勤务岗位05 | C98: 威宁自治县公安局 | D98: 05 | E98: 李恒 | F98: 20250503821 | G98: 100.18 | H98: 66.79 | I98: 26.72 | J98: 74.00 | K98: 44.40 | L98: 71.12 | M98: 是
A99: 97 | B99: 勤务岗位05 | C99: 威宁自治县公安局 | D99: 05 | E99: 何兴富 | F99: 20250504014 | G99: 107.50 | H99: 71.67 | I99: 28.67 | J99: 68.67 | K99: 41.20 | L99: 69.87 | M99: 是
A100: 98 | B100: 勤务岗位05 | C100: 威宁自治县公安局 | D100: 05 | E100: 张路 | F100: 20250503913 | G100: 112.24 | H100: 74.83 | I100: 29.93 | J100: 65.67 | K100: 39.40 | L100: 69.33 | M100: 否
A101: 99 | B101: 勤务岗位05 | C101: 威宁自治县公安局 | D101: 05 | E101: 谭越 | F101: 20250503802 | G101: 98.28 | H101: 65.52 | I101: 26.21 | J101: 71.33 | K101: 42.80 | L101: 69.01 | M101: 否
A102: 100 | B102: 勤务岗位05 | C102: 威宁自治县公安局 | D102: 05 | E102: 戴旭 | F102: 20250504105 | G102: 107.26 | H102: 71.51 | I102: 28.60 | J102: 67.33 | K102: 40.40 | L102: 69.00 | M102: 否
A103: 101 | B103: 勤务岗位05 | C103: 威宁自治县公安局 | D103: 05 | E103: 夏义军 | F103: 20250504201 | G103: 105.42 | H103: 70.28 | I103: 28.11 | J103: 67.50 | K103: 40.50 | L103: 68.61 | M103: 否
A104: 102 | B104: 勤务岗位05 | C104: 威宁自治县公安局 | D104: 05 | E104: 赵习浪 | F104: 20250504106 | G104: 100.51 | H104: 67.01 | I104: 26.80 | J104: 69.67 | K104: 41.80 | L104: 68.60 | M104: 否
A105: 103 | B105: 勤务岗位05 | C105: 威宁自治县公安局 | D105: 05 | E105: 马涛 | F105: 20250503815 | G105: 104.46 | H105: 69.64 | I105: 27.86 | J105: 67.67 | K105: 40.60 | L105: 68.46 | M105: 否
A106: 104 | B106: 勤务岗位05 | C106: 威宁自治县公安局 | D106: 05 | E106: 聂开志 | F106: 20250503927 | G106: 108.35 | H106: 72.23 | I106: 28.89 | J106: 65.67 | K106: 39.40 | L106: 68.29 | M106: 否
A107: 105 | B107: 勤务岗位05 | C107: 威宁自治县公安局 | D107: 05 | E107: 祖思宏 | F107: 20250503924 | G107: 98.41 | H107: 65.61 | I107: 26.24 | J107: 69.73 | K107: 41.84 | L107: 68.08 | M107: 否
A108: 106 | B108: 勤务岗位05 | C108: 威宁自治县公安局 | D108: 05 | E108: 罗玉超 | F108: 20250504103 | G108: 99.22 | H108: 66.15 | I108: 26.46 | J108: 69.33 | K108: 41.60 | L108: 68.06 | M108: 否
A109: 107 | B109: 勤务岗位05 | C109: 威宁自治县公安局 | D109: 05 | E109: 罗贤银 | F109: 20250504121 | G109: 107.13 | H109: 71.42 | I109: 28.57 | J109: 64.33 | K109: 38.60 | L109: 67.17 | M109: 否
A110: 108 | B110: 勤务岗位05 | C110: 威宁自治县公安局 | D110: 05 | E110: 李正伟 | F110: 20250503925 | G110: 101.36 | H110: 67.57 | I110: 27.03 | J110: 66.67 | K110: 40.00 | L110: 67.03 | M110: 否
A111: 109 | B111: 勤务岗位05 | C111: 威宁自治县公安局 | D111: 05 | E111: 虎恩龙 | F111: 20250503718 | G111: 102.34 | H111: 68.23 | I111: 27.29 | J111: 65.67 | K111: 39.40 | L111: 66.69 | M111: 否
A112: 110 | B112: 勤务岗位05 | C112: 威宁自治县公安局 | D112: 05 | E112: 马涛 | F112: 20250503905 | G112: 104.29 | H112: 69.53 | I112: 27.81 | J112: 64.00 | K112: 38.40 | L112: 66.21 | M112: 否
A113: 111 | B113: 勤务岗位06 | C113: 威宁自治县公安局 | D113: 06 | E113: 柯燊 | F113: 20250604306 | G113: 124.98 | H113: 83.32 | I113: 33.33 | J113: 79.00 | K113: 47.40 | L113: 80.73 | M113: 是
A114: 112 | B114: 勤务岗位06 | C114: 威宁自治县公安局 | D114: 06 | E114: 邓先胜 | F114: 20250604720 | G114: 115.91 | H114: 77.27 | I114: 30.91 | J114: 81.83 | K114: 49.10 | L114: 80.01 | M114: 是
A115: 113 | B115: 勤务岗位06 | C115: 威宁自治县公安局 | D115: 06 | E115: 成发吉 | F115: 20250604512 | G115: 117.64 | H115: 78.43 | I115: 31.37 | J115: 80.50 | K115: 48.30 | L115: 79.67 | M115: 是
A116: 114 | B116: 勤务岗位06 | C116: 威宁自治县公安局 | D116: 06 | E116: 李绍鹏 | F116: 20250604516 | G116: 110.71 | H116: 73.81 | I116: 29.52 | J116: 79.00 | K116: 47.40 | L116: 76.92 | M116: 是
A117: 115 | B117: 勤务岗位06 | C117: 威宁自治县公安局 | D117: 06 | E117: 陆汉东 | F117: 20250604427 | G117: 122.27 | H117: 81.51 | I117: 32.60 | J117: 71.67 | K117: 43.00 | L117: 75.60 | M117: 是
A118: 116 | B118: 勤务岗位06 | C118: 威宁自治县公安局 | D118: 06 | E118: 马堤 | F118: 20250604606 | G118: 113.18 | H118: 75.45 | I118: 30.18 | J118: 74.67 | K118: 44.80 | L118: 74.98 | M118: 是
A119: 117 | B119: 勤务岗位06 | C119: 威宁自治县公安局 | D119: 06 | E119: 马亚威 | F119: 20250604802 | G119: 109.03 | H119: 72.69 | I119: 29.08 | J119: 76.33 | K119: 45.80 | L119: 74.88 | M119: 是
A120: 118 | B120: 勤务岗位06 | C120: 威宁自治县公安局 | D120: 06 | E120: 禄尧 | F120: 20250604622 | G120: 112.81 | H120: 75.21 | I120: 30.08 | J120: 74.00 | K120: 44.40 | L120: 74.48 | M120: 是
A121: 119 | B121: 勤务岗位06 | C121: 威宁自治县公安局 | D121: 06 | E121: 肖建 | F121: 20250604518 | G121: 113.51 | H121: 75.67 | I121: 30.27 | J121: 73.67 | K121: 44.20 | L121: 74.47 | M121: 是
A122: 120 | B122: 勤务岗位06 | C122: 威宁自治县公安局 | D122: 06 | E122: 周杰 | F122: 20250604730 | G122: 105.51 | H122: 70.34 | I122: 28.14 | J122: 77.17 | K122: 46.30 | L122: 74.44 | M122: 是
A123: 121 | B123: 勤务岗位06 | C123: 威宁自治县公安局 | D123: 06 | E123: 付成江 | F123: 20250604623 | G123: 103.39 | H123: 68.93 | I123: 27.57 | J123: 77.50 | K123: 46.50 | L123: 74.07 | M123: 是
A124: 122 | B124: 勤务岗位06 | C124: 威宁自治县公安局 | D124: 06 | E124: 禄万元 | F124: 20250604716 | G124: 108.46 | H124: 72.31 | I124: 28.92 | J124: 75.17 | K124: 45.10 | L124: 74.02 | M124: 是
A125: 123 | B125: 勤务岗位06 | C125: 威宁自治县公安局 | D125: 06 | E125: 柏富望 | F125: 20250604705 | G125: 103.85 | H125: 69.23 | I125: 27.69 | J125: 77.17 | K125: 46.30 | L125: 73.99 | M125: 是
A126: 124 | B126: 勤务岗位06 | C126: 威宁自治县公安局 | D126: 06 | E126: 曹亮成 | F126: 20250604727 | G126: 101.36 | H126: 67.57 | I126: 27.03 | J126: 77.67 | K126: 46.60 | L126: 73.63 | M126: 是
A127: 125 | B127: 勤务岗位06 | C127: 威宁自治县公安局 | D127: 06 | E127: 陈选崇 | F127: 20250604401 | G127: 110.10 | H127: 73.40 | I127: 29.36 | J127: 73.33 | K127: 44.00 | L127: 73.36 | M127: 是
A128: 126 | B128: 勤务岗位06 | C128: 威宁自治县公安局 | D128: 06 | E128: 杨英艳 | F128: 20250604717 | G128: 98.89 | H128: 65.93 | I128: 26.37 | J128: 78.17 | K128: 46.90 | L128: 73.27 | M128: 是
A129: 127 | B129: 勤务岗位06 | C129: 威宁自治县公安局 | D129: 06 | E129: 石训磊 | F129: 20250604409 | G129: 110.21 | H129: 73.47 | I129: 29.39 | J129: 71.33 | K129: 42.80 | L129: 72.19 | M129: 否
A130: 128 | B130: 勤务岗位06 | C130: 威宁自治县公安局 | D130: 06 | E130: 卯明霸 | F130: 20250604311 | G130: 101.86 | H130: 67.91 | I130: 27.16 | J130: 75.00 | K130: 45.00 | L130: 72.16 | M130: 否
A131: 129 | B131: 勤务岗位06 | C131: 威宁自治县公安局 | D131: 06 | E131: 许兴山 | F131: 20250604627 | G131: 113.66 | H131: =ROUND(G131/1.5,2) -> 75.77 | I131: =ROUND(H131*0.4,2) -> 30.31 | J131: 69.33 | K131: =ROUND(J131*0.6,2) -> 41.60 | L131: =I131+K131 -> 71.91 | M131: 否
A132: 130 | B132: 勤务岗位06 | C132: 威宁自治县公安局 | D132: 06 | E132: 管尧 | F132: 20250604702 | G132: 102.63 | H132: 68.42 | I132: 27.37 | J132: 74.00 | K132: 44.40 | L132: 71.77 | M132: 否
A133: 131 | B133: 勤务岗位06 | C133: 威宁自治县公安局 | D133: 06 | E133: 李见 | F133: 20250604615 | G133: 98.32 | H133: 65.55 | I133: 26.22 | J133: 75.67 | K133: 45.40 | L133: 71.62 | M133: 否
A134: 132 | B134: 勤务岗位06 | C134: 威宁自治县公安局 | D134: 06 | E134: 郑显升 | F134: 20250604513 | G134: 97.30 | H134: 64.87 | I134: 25.95 | J134: 75.67 | K134: 45.40 | L134: 71.35 | M134: 否
A135: 133 | B135: 勤务岗位06 | C135: 威宁自治县公安局 | D135: 06 | E135: 虎迅 | F135: 20250604319 | G135: 112.20 | H135: 74.80 | I135: 29.92 | J135: 68.33 | K135: 41.00 | L135: 70.92 | M135: 否
A136: 134 | B136: 勤务岗位06 | C136: 威宁自治县公安局 | D136: 06 | E136: 李克傲 | F136: 20250604313 | G136: 104.33 | H136: 69.55 | I136: 27.82 | J136: 71.67 | K136: 43.00 | L136: 70.82 | M136: 否
A137: 135 | B137: 勤务岗位06 | C137: 威宁自治县公安局 | D137: 06 | E137: 陶吕 | F137: 20250604612 | G137: 99.94 | H137: 66.63 | I137: 26.65 | J137: 73.00 | K137: 43.80 | L137: 70.45 | M137: 否
A138: 136 | B138: 勤务岗位06 | C138: 威宁自治县公安局 | D138: 06 | E138: 刘磊 | F138: 20250604605 | G138: 96.51 | H138: 64.34 | I138: 25.74 | J138: 73.67 | K138: 44.20 | L138: 69.94 | M138: 否
A139: 137 | B139: 勤务岗位06 | C139: 威宁自治县公安局 | D139: 06 | E139: 龙禹 | F139: 20250604510 | G139: 100.88 | H139: 67.25 | I139: 26.90 | J139: 71.33 | K139: 42.80 | L139: 69.70 | M139: 否
A140: 138 | B140: 勤务岗位06 | C140: 威宁自治县公安局 | D140: 06 | E140: 马衍 | F140: 20250604503 | G140: 96.86 | H140: 64.57 | I140: 25.83 | J140: 71.00 | K140: 42.60 | L140: 68.43 | M140: 否
A141: 139 | B141: 勤务岗位06 | C141: 威宁自治县公安局 | D141: 06 | E141: 李方 | F141: 20250604301 | G141: 96.99 | H141: 64.66 | I141: 25.86 | J141: 70.67 | K141: 42.40 | L141: 68.26 | M141: 否
A142: 140 | B142: 勤务岗位06 | C142: 威宁自治县公安局 | D142: 06 | E142: 速稷 | F142: 20250604430 | G142: 103.48 | H142: 68.99 | I142: 27.60 | J142: 67.67 | K142: 40.60 | L142: 68.20 | M142: 否
A143: 141 | B143: 勤务岗位06 | C143: 威宁自治县公安局 | D143: 06 | E143: 谢镜丛 | F143: 20250604601 | G143: 97.93 | H143: 65.29 | I143: 26.12 | J143: 69.83 | K143: 41.90 | L143: 68.02 | M143: 否
A144: 142 | B144: 勤务岗位06 | C144: 威宁自治县公安局 | D144: 06 | E144: 吴胜奎 | F144: 20250604424 | G144: 97.19 | H144: 64.79 | I144: 25.92 | J144: 65.00 | K144: 39.00 | L144: 64.92 | M144: 否
A145: 143 | B145: 勤务岗位07 | C145: 威宁自治县公安局 | D145: 07 | E145: 张镭 | F145: 20250704805 | G145: 119.91 | H145: 79.94 | I145: =H145*0.4 -> 31.98 | J145: 79.02 | K145: 47.41 | L145: 79.39 | M145: 是
A146: 144 | B146: 勤务岗位07 | C146: 威宁自治县公安局 | D146: 07 | E146: 马威 | F146: 20250704830 | G146: 113.64 | H146: 75.76 | I146: 30.30 | J146: 79.16 | K146: 47.50 | L146: 77.80 | M146: 是
A147: 145 | B147: 勤务岗位07 | C147: 威宁自治县公安局 | D147: 07 | E147: 吕俊书 | F147: 20250705308 | G147: 116.59 | H147: 77.73 | I147: 31.09 | J147: 77.70 | K147: 46.62 | L147: 77.71 | M147: 是
A148: 146 | B148: 勤务岗位07 | C148: 威宁自治县公安局 | D148: 07 | E148: 卢孟杰 | F148: 20250705218 | G148: 100.18 | H148: 66.79 | I148: 26.72 | J148: 84.26 | K148: 50.56 | L148: 77.28 | M148: 是
A149: 147 | B149: 勤务岗位07 | C149: 威宁自治县公安局 | D149: 07 | E149: 刘耀 | F149: 20250705203 | G149: 110.71 | H149: 73.81 | I149: 29.52 | J149: 78.50 | K149: 47.10 | L149: 76.62 | M149: 是
A150: 148 | B150: 勤务岗位07 | C150: 威宁自治县公安局 | D150: 07 | E150: 安威 | F150: 20250704807 | G150: 110.25 | H150: 73.50 | I150: 29.40 | J150: 78.19 | K150: 46.91 | L150: 76.31 | M150: 是
A151: 149 | B151: 勤务岗位07 | C151: 威宁自治县公安局 | D151: 07 | E151: 赵卫 | F151: 20250705121 | G151: 102.06 | H151: 68.04 | I151: 27.22 | J151: 81.77 | K151: 49.06 | L151: 76.28 | M151: 是
A152: 150 | B152: 勤务岗位07 | C152: 威宁自治县公安局 | D152: 07 | E152: 罗祥熙 | F152: 20250704910 | G152: 108.24 | H152: 72.16 | I152: 28.86 | J152: 78.88 | K152: 47.33 | L152: 76.19 | M152: 是
A153: 151 | B153: 勤务岗位07 | C153: 威宁自治县公安局 | D153: 07 | E153: 管彦淞 | F153: 20250705007 | G153: 106.56 | H153: 71.04 | I153: 28.42 | J153: 79.15 | K153: 47.49 | L153: 75.91 | M153: 是
A154: 152 | B154: 勤务岗位07 | C154: 威宁自治县公安局 | D154: 07 | E154: 俞筛军 | F154: 20250705222 | G154: 108.11 | H154: 72.07 | I154: 28.83 | J154: 78.41 | K154: 47.05 | L154: 75.88 | M154: 是
A155: 153 | B155: 勤务岗位07 | C155: 威宁自治县公安局 | D155: 07 | E155: 任乃龙 | F155: 20250705116 | G155: 113.66 | H155: 75.77 | I155: 30.31 | J155: 75.49 | K155: 45.29 | L155: 75.60 | M155: 是
A156: 154 | B156: 勤务岗位07 | C156: 威宁自治县公安局 | D156: 07 | E156: 张兴全 | F156: 20250705001 | G156: 109.73 | H156: 73.15 | I156: 29.26 | J156: 77.13 | K156: 46.28 | L156: 75.54 | M156: 是
A157: 155 | B157: 勤务岗位07 | C157: 威宁自治县公安局 | D157: 07 | E157: 舒梦江 | F157: 20250705311 | G157: 113.99 | H157: 75.99 | I157: 30.40 | J157: 74.86 | K157: 44.92 | L157: 75.32 | M157: 是
A158: 156 | B158: 勤务岗位07 | C158: 威宁自治县公安局 | D158: 07 | E158: 王涛 | F158: 20250705029 | G158: 106.56 | H158: 71.04 | I158: 28.42 | J158: 77.84 | K158: 46.70 | L158: 75.12 | M158: 是
A159: 157 | B159: 勤务岗位07 | C159: 威宁自治县公安局 | D159: 07 | E159: 段德俊 | F159: 20250705006 | G159: 107.37 | H159: 71.58 | I159: 28.63 | J159: 77.13 | K159: 46.28 | L159: 74.91 | M159: 是
A160: 158 | B160: 勤务岗位07 | C160: 威宁自治县公安局 | D160: 07 | E160: 苏旺 | F160: 20250705213 | G160: 106.65 | H160: 71.10 | I160: 28.44 | J160: 77.31 | K160: 46.39 | L160: 74.83 | M160: 是
A161: 159 | B161: 勤务岗位07 | C161: 威宁自治县公安局 | D161: 07 | E161: 张星 | F161: 20250704911 | G161: 108.26 | H161: 72.17 | I161: 28.87 | J161: 76.06 | K161: 45.64 | L161: 74.51 | M161: 否
A162: 160 | B162: 勤务岗位07 | C162: 威宁自治县公安局 | D162: 07 | E162: 王远奎 | F162: 20250705301 | G162: 108.59 | H162: 72.39 | I162: 28.96 | J162: 75.80 | K162: 45.48 | L162: 74.44 | M162: 否
A163: 161 | B163: 勤务岗位07 | C163: 威宁自治县公安局 | D163: 07 | E163: 卯明忠 | F163: 20250705102 | G163: 105.84 | H163: 70.56 | I163: 28.22 | J163: 76.80 | K163: 46.08 | L163: 74.30 | M163: 否
A164: 162 | B164: 勤务岗位07 | C164: 威宁自治县公安局 | D164: 07 | E164: 黄仙果 | F164: 20250704928 | G164: 104.66 | H164: 69.77 | I164: 27.91 | J164: 76.83 | K164: 46.10 | L164: 74.01 | M164: 否
A165: 163 | B165: 勤务岗位07 | C165: 威宁自治县公安局 | D165: 07 | E165: 王大园 | F165: 20250705021 | G165: 114.12 | H165: 76.08 | I165: 30.43 | J165: 72.10 | K165: 43.26 | L165: 73.69 | M165: 否
A166: 164 | B166: 勤务岗位07 | C166: 威宁自治县公安局 | D166: 07 | E166: 邹志强 | F166: 20250704907 | G166: 104.09 | H166: 69.39 | I166: 27.76 | J166: 74.33 | K166: 44.60 | L166: 72.36 | M166: 否
A167: 165 | B167: 勤务岗位07 | C167: 威宁自治县公安局 | D167: 07 | E167: 孙孟禹 | F167: 20250705229 | G167: 101.25 | H167: 67.50 | I167: 27.00 | J167: 75.05 | K167: 45.03 | L167: 72.03 | M167: 否
A168: 166 | B168: 勤务岗位07 | C168: 威宁自治县公安局 | D168: 07 | E168: 马宫 | F168: 20250704811 | G168: 106.21 | H168: 70.81 | I168: 28.32 | J168: 72.79 | K168: 43.67 | L168: 71.99 | M168: 否
A169: 167 | B169: 勤务岗位07 | C169: 威宁自治县公安局 | D169: 07 | E169: 聂浩伦 | F169: 20250705005 | G169: 104.53 | H169: 69.69 | I169: 27.88 | J169: 73.49 | K169: 44.09 | L169: 71.97 | M169: 否
A170: 168 | B170: 勤务岗位07 | C170: 威宁自治县公安局 | D170: 07 | E170: 赵欢 | F170: 20250705019 | G170: 101.10 | H170: 67.40 | I170: 26.96 | J170: 73.99 | K170: 44.39 | L170: 71.35 | M170: 否
A171: 169 | B171: 勤务岗位07 | C171: 威宁自治县公安局 | D171: 07 | E171: 洪江炼 | F171: 20250705004 | G171: 104.55 | H171: 69.70 | I171: 27.88 | J171: 71.31 | K171: 42.79 | L171: 70.67 | M171: 否
A172: 170 | B172: 勤务岗位07 | C172: 威宁自治县公安局 | D172: 07 | E172: 朱健江 | F172: 20250705016 | G172: 103.11 | H172: 68.74 | I172: 27.50 | J172: 70.81 | K172: 42.49 | L172: 69.99 | M172: 否
A173: 171 | B173: 勤务岗位07 | C173: 威宁自治县公安局 | D173: 07 | E173: 史开邦 | F173: 20250704823 | G173: 109.16 | H173: 72.77 | I173: 29.11 | J173: 67.59 | K173: 40.55 | L173: 69.66 | M173: 否
A174: 172 | B174: 勤务岗位07 | C174: 威宁自治县公安局 | D174: 07 | E174: 范浩 | F174: 20250704814 | G174: 104.66 | H174: 69.77 | I174: 27.91 | J174: 67.99 | K174: 40.79 | L174: 68.70 | M174: 否
A175: 173 | B175: 勤务岗位08 | C175: 威宁自治县公安局 | D175: 08 | E175: 雷文训 | F175: 20250805424 | G175: 122.97 | H175: 81.98 | I175: =ROUND(H175*0.4,2) -> 32.79 | J175: 82.50 | K175: 49.50 | L175: 82.29 | M175: 是
A176: 174 | B176: 勤务岗位08 | C176: 威宁自治县公安局 | D176: 08 | E176: 朱兵 | F176: 20250805806 | G176: 111.65 | H176: 74.43 | I176: 29.77 | J176: 86.93 | K176: 52.16 | L176: 81.93 | M176: 是
A177: 175 | B177: 勤务岗位08 | C177: 威宁自治县公安局 | D177: 08 | E177: 李文龙 | F177: 20250805318 | G177: 109.51 | H177: 73.01 | I177: 29.20 | J177: 84.33 | K177: 50.60 | L177: 79.80 | M177: 是
A178: 176 | B178: 勤务岗位08 | C178: 威宁自治县公安局 | D178: 08 | E178: 王祎聃 | F178: 20250805529 | G178: 104.66 | H178: 69.77 | I178: 27.91 | J178: 86.00 | K178: 51.60 | L178: 79.51 | M178: 是
A179: 177 | B179: 勤务岗位08 | C179: 威宁自治县公安局 | D179: 08 | E179: 赵泽芳 | F179: 20250805507 | G179: 121.55 | H179: 81.03 | I179: 32.41 | J179: 78.33 | K179: 47.00 | L179: 79.41 | M179: 是
A180: 178 | B180: 勤务岗位08 | C180: 威宁自治县公安局 | D180: 08 | E180: 王岗 | F180: 20250805321 | G180: 106.80 | H180: 71.20 | I180: 28.48 | J180: 84.00 | K180: 50.40 | L180: 78.88 | M180: 是
A181: 179 | B181: 勤务岗位08 | C181: 威宁自治县公安局 | D181: 08 | E181: 马杨 | F181: 20250805403 | G181: 108.07 | H181: 72.05 | I181: 28.82 | J181: 83.33 | K181: 50.00 | L181: 78.82 | M181: 是
A182: 180 | B182: 勤务岗位08 | C182: 威宁自治县公安局 | D182: 08 | E182: 赵润 | F182: 20250805716 | G182: 104.99 | H182: 69.99 | I182: 28.00 | J182: 84.33 | K182: 50.60 | L182: 78.60 | M182: 是
A183: 181 | B183: 勤务岗位08 | C183: 威宁自治县公安局 | D183: 08 | E183: 唐仁高 | F183: 20250805525 | G183: 107.98 | H183: 71.99 | I183: 28.80 | J183: 82.00 | K183: 49.20 | L183: 78.00 | M183: 是
A184: 182 | B184: 勤务岗位08 | C184: 威宁自治县公安局 | D184: 08 | E184: 王卫 | F184: 20250805808 | G184: 109.40 | H184: 72.93 | I184: 29.17 | J184: 81.00 | K184: 48.60 | L184: 77.77 | M184: 是
A185: 183 | B185: 勤务岗位08 | C185: 威宁自治县公安局 | D185: 08 | E185: 程杰 | F185: 20250805620 | G185: 111.28 | H185: 74.19 | I185: 29.68 | J185: 79.33 | K185: 47.60 | L185: 77.28 | M185: 是
A186: 184 | B186: 勤务岗位08 | C186: 威宁自治县公安局 | D186: 08 | E186: 施旺 | F186: 20250805508 | G186: 103.20 | H186: 68.80 | I186: 27.52 | J186: 82.00 | K186: 49.20 | L186: 76.72 | M186: 是
A187: 185 | B187: 勤务岗位08 | C187: 威宁自治县公安局 | D187: 08 | E187: 李锦山 | F187: 20250805630 | G187: 111.28 | H187: 74.19 | I187: 29.68 | J187: 78.00 | K187: 46.80 | L187: 76.48 | M187: 是
A188: 186 | B188: 勤务岗位08 | C188: 威宁自治县公安局 | D188: 08 | E188: 夏富尔 | F188: 20250805520 | G188: 104.44 | H188: 69.63 | I188: 27.85 | J188: 80.67 | K188: 48.40 | L188: 76.25 | M188: 是
A189: 187 | B189: 勤务岗位08 | C189: 威宁自治县公安局 | D189: 08 | E189: 李洋洋 | F189: 20250805712 | G189: 103.70 | H189: 69.13 | I189: 27.65 | J189: 81.00 | K189: 48.60 | L189: 76.25 | M189: 是
A190: 188 | B190: 勤务岗位08 | C190: 威宁自治县公安局 | D190: 08 | E190: 孔向前 | F190: 20250805708 | G190: 96.86 | H190: 64.57 | I190: 25.83 | J190: 83.67 | K190: 50.20 | L190: 76.03 | M190: 是
A191: 189 | B191: 勤务岗位08 | C191: 威宁自治县公安局 | D191: 08 | E191: 管旺 | F191: 20250805807 | G191: 98.32 | H191: 65.55 | I191: 26.22 | J191: 82.00 | K191: 49.20 | L191: 75.42 | M191: 否
A192: 190 | B192: 勤务岗位08 | C192: 威宁自治县公安局 | D192: 08 | E192: 辛伟 | F192: 20250805719 | G192: 103.11 | H192: 68.74 | I192: 27.50 | J192: 79.67 | K192: 47.80 | L192: 75.30 | M192: 否
A193: 191 | B193: 勤务岗位08 | C193: 威宁自治县公安局 | D193: 08 | E193: 马丝豪 | F193: 20250805425 | G193: 105.27 | H193: 70.18 | I193: 28.07 | J193: 77.00 | K193: 46.20 | L193: 74.27 | M193: 否
A194: 192 | B194: 勤务岗位08 | C194: 威宁自治县公安局 | D194: 08 | E194: 陈维良 | F194: 20250805330 | G194: 111.72 | H194: 74.48 | I194: 29.79 | J194: 74.00 | K194: 44.40 | L194: 74.19 | M194: 否
A195: 193 | B195: 勤务岗位08 | C195: 威宁自治县公安局 | D195: 08 | E195: 马贵雄 | F195: 20250805625 | G195: 97.80 | H195: =ROUND(G195/1.5,2) -> 65.20 | I195: 26.08 | J195: 80.00 | K195: =ROUND(J195*0.6,2) -> 48.00 | L195: =I195+K195 -> 74.08 | M195: 否
A196: 194 | B196: 勤务岗位08 | C196: 威宁自治县公安局 | D196: 08 | E196: 罗俊 | F196: 20250805510 | G196: 107.13 | H196: 71.42 | I196: 28.57 | J196: 75.33 | K196: 45.20 | L196: 73.77 | M196: 否
A197: 195 | B197: 勤务岗位08 | C197: 威宁自治县公安局 | D197: 08 | E197: 刘其鑫 | F197: 20250805619 | G197: 96.01 | H197: 64.01 | I197: 25.60 | J197: 80.00 | K197: 48.00 | L197: 73.60 | M197: 否
A198: 196 | B198: 勤务岗位08 | C198: 威宁自治县公安局 | D198: 08 | E198: 韩文降 | F198: 20250805706 | G198: 110.10 | H198: 73.40 | I198: 29.36 | J198: 73.67 | K198: 44.20 | L198: 73.56 | M198: 否
A199: 197 | B199: 勤务岗位08 | C199: 威宁自治县公安局 | D199: 08 | E199: 江运东 | F199: 20250805810 | G199: 99.35 | H199: 66.23 | I199: 26.49 | J199: 78.00 | K199: 46.80 | L199: 73.29 | M199: 否
A200: 198 | B200: 勤务岗位08 | C200: 威宁自治县公安局 | D200: 08 | E200: 周航 | F200: 20250805418 | G200: 96.01 | H200: 64.01 | I200: 25.60 | J200: 79.00 | K200: 47.40 | L200: 73.00 | M200: 否
... 332 more rows

Sheet Sheet2

Sheet Sheet3
